fUST/lending_fUST_20250530
["ID","MTS","AMOUNT","RATE_DAILY","PERIOD"]
[363042557,1748559049959,-151.0,0.00021369,2]
[363042559,1748559049968,-1019.32,0.00021369,2]
[363042561,1748559049978,-286.262397,0.00021369,2]
[363042563,1748559049987,-3424.75,0.00021369,2]
[363042565,1748559049997,-165.089126,0.00021369,2]
[363042567,1748559050009,-1169.52,0.00021369,2]
[363042569,1748559050019,-165.089126,0.00021369,2]
[363042571,1748559050028,-430.0,0.00021369,2]
[363042573,1748559050038,-2693.38,0.00021369,2]
[363042575,1748559050048,-2725.7,0.00021369,2]
[363042578,1748559050060,-430.35,0.00021369,2]
[363042580,1748559050070,-151.0,0.000214,3]
[363042582,1748559050082,-314.78059479,0.000214,3]
[363042584,1748559050092,-1285.30327751,0.00021443,2]
[363042586,1748559050102,-3259.03433194,0.00021452,5]
[363042588,1748559050112,-572.078714,0.00021562,2]
[363042590,1748559050121,-514.1178007,0.00021562,2]
[363042592,1748559050131,-3259.03433194,0.00021624,5]
[363042594,1748559050140,-151.0,0.00021643,2]
[363042596,1748559050150,-151.0,0.00021643,2]
[363042598,1748559050160,-151.0,0.00021643,2]
[363042600,1748559050170,-173.324221,0.00021643,2]
[363042602,1748559050180,-173.324221,0.00021643,2]
[363042604,1748559050189,-389.535264,0.00021643,2]
[363042606,1748559050199,-389.535264,0.00021643,2]
[363042609,1748559050211,-151.0,0.00021643,2]
[363042611,1748559050221,-151.0,0.00021643,2]
[363042613,1748559050231,-151.0,0.00021643,2]
[363042615,1748559050240,-151.0,0.00021643,2]
[363042617,1748559050251,-405.922618,0.00021643,2]
[363042619,1748559050260,-405.922618,0.00021643,2]
[363042621,1748559050270,-559.728489,0.00021643,2]
[363042623,1748559050279,-559.728489,0.00021643,2]
[363042625,1748559050289,-185.671259,0.00021643,2]
[363042627,1748559050298,-185.671259,0.00021643,2]
[363042629,1748559050307,-151.0,0.00021643,2]
[363042631,1748559050317,-159.540771,0.00021643,2]
[363042633,1748559050327,-159.540771,0.00021643,2]
[363042635,1748559050337,-151.0,0.00021643,2]
[363042637,1748559050346,-151.0,0.00021643,2]
[363042639,1748559050355,-151.0,0.00021643,2]
[363042641,1748559050364,-230.796027,0.00021643,2]
[363042643,1748559050373,-230.796027,0.00021643,2]
[363042645,1748559050382,-224.937947,0.00021643,2]
[363042646,1748559050391,-224.937947,0.00021643,2]
[363042648,1748559050400,-151.0,0.00021643,2]
[363042651,1748559050410,-151.0,0.00021643,2]
[363042653,1748559050420,-488.028774,0.00021643,2]
[363042655,1748559050430,-488.028774,0.00021643,2]
[363042657,1748559050439,-211.744238,0.00021643,2]
[363042659,1748559050448,-211.744238,0.00021643,2]
[363042661,1748559050457,-151.0,0.00021643,2]
[363042663,1748559050467,-151.0,0.00021643,2]
[363042665,1748559050477,-666.262388,0.00021643,2]
[363042667,1748559050486,-151.0,0.00021643,2]
[363042669,1748559050496,-666.262388,0.00021643,2]
[363042671,1748559050506,-154.450598,0.00021643,2]
[363042673,1748559050516,-430.0,0.00021643,2]
[363042675,1748559050525,-3528.632142,0.00021643,2]
[363042677,1748559050535,-3528.632142,0.00021643,2]
[363042679,1748559050544,-1131.49,0.00021643,2]
[363042681,1748559050554,-681.15,0.00021643,2]
[363042683,1748559050563,-151.0,0.00021643,2]
[363042685,1748559050573,-430.0,0.00021643,2]
[363042687,1748559050583,-853.32,0.00021643,2]
[363042689,1748559050593,-430.0,0.00021643,2]
[363042691,1748559050602,-458.44,0.00021643,2]
[363042693,1748559050611,-325.723899,0.00021643,2]
[363042695,1748559050621,-430.0,0.00021643,2]
[363042697,1748559050631,-325.723899,0.00021643,2]
[363042699,1748559050640,-224.068466,0.00021643,2]
[363042701,1748559050649,-224.068466,0.00021643,2]
[363042703,1748559050659,-1484.630984,0.00021643,2]
[363042705,1748559050669,-1484.630984,0.00021643,2]
[363042707,1748559050679,-760.73,0.00021643,2]
[363042709,1748559050688,-430.0,0.00021643,2]
[363042711,1748559050698,-430.0,0.00021643,2]
[363042713,1748559050707,-430.0,0.00021643,2]
[363042715,1748559050717,-430.0,0.00021643,2]
[363042717,1748559050726,-773.76,0.00021643,2]
[363042719,1748559050736,-4753.22,0.00021643,2]
[363042721,1748559050745,-662.19,0.00021643,2]
[363042723,1748559050754,-3674.83,0.00021643,2]
[363042725,1748559050763,-430.0,0.00021643,2]
[363042727,1748559050773,-269.645922,0.00021643,2]
[363042729,1748559050782,-430.0,0.00021643,2]
[363042731,1748559050791,-430.0,0.00021643,2]
[363042733,1748559050800,-269.645922,0.00021643,2]
[363042735,1748559050810,-589.21,0.00021643,2]
[363042737,1748559050820,-2053.24,0.00021643,2]
[363042739,1748559050831,-430.0,0.00021643,2]
[363042741,1748559050840,-696.31,0.00021643,2]
[363042743,1748559050850,-720.56,0.00021643,2]
[363042745,1748559050860,-2613.16,0.00021643,2]
[363042747,1748559050868,-430.0,0.00021643,2]
[363042749,1748559050878,-430.0,0.00021643,2]
[363042751,1748559050887,-4412.79,0.00021643,2]
[363042753,1748559050896,-968.5,0.00021643,2]
[363042755,1748559050906,-430.0,0.00021643,2]
[363042757,1748559050915,-517.0,0.00021643,2]
[363042759,1748559050924,-644.49,0.00021643,2]
[363042761,1748559050935,-430.0,0.00021643,2]
[363042763,1748559050945,-430.0,0.00021643,2]
[363042765,1748559050954,-953.49,0.00021643,2]
[363042767,1748559050963,-2879.71,0.00021643,2]
[363042769,1748559050972,-458.78,0.00021643,2]
[363042771,1748559050982,-697.57,0.00021643,2]
[363042773,1748559050991,-430.0,0.00021643,2]
[363042775,1748559051001,-3822.31,0.00021643,2]
[363042777,1748559051014,-430.0,0.00021643,2]
[363042779,1748559051024,-848.19,0.00021643,2]
[363042781,1748559051034,-1041.37,0.00021643,2]
[363042783,1748559051043,-8172.02,0.00021643,2]
[363042786,1748559051054,-1022.41,0.00021643,2]
[363042787,1748559051063,-1425.87,0.00021643,2]
[363042790,1748559051073,-5104.13,0.00021643,2]
[363042792,1748559051084,-1326.38,0.00021643,2]
[363042793,1748559051094,-873.84,0.00021643,2]
[363042796,1748559051104,-7369.0,0.00021643,2]
[363042798,1748559051113,-467.28,0.00021643,2]
[363042800,1748559051123,-430.0,0.00021643,2]
[363042801,1748559051132,-2070.38,0.00021643,2]
[363042804,1748559051143,-430.0,0.00021643,2]
[363042805,1748559051151,-2055.19,0.00021643,2]
[363042807,1748559051160,-1511.1,0.00021643,2]
[363042809,1748559051169,-430.0,0.00021643,2]
[363042811,1748559051179,-1350.97,0.00021643,2]
[363042813,1748559051189,-1584.57,0.00021643,2]
[363042815,1748559051198,-750.88,0.00021643,2]
[363042817,1748559051207,-1425.46,0.00021643,2]
[363042819,1748559051216,-430.0,0.00021643,2]
[363042821,1748559051226,-722.11,0.00021643,2]
[363042824,1748559051236,-430.0,0.00021643,2]
[363042826,1748559051246,-760.02,0.00021643,2]
[363042828,1748559051256,-578.85,0.00021643,2]
[363042830,1748559051266,-615.21,0.00021643,2]
[363042831,1748559051275,-913.66,0.00021643,2]
[363042834,1748559051285,-741.95,0.00021643,2]
[363042836,1748559051295,-430.0,0.00021643,2]
[363042838,1748559051305,-2799.2,0.00021643,2]
[363042840,1748559051314,-517.21,0.00021643,2]
[363042842,1748559051324,-430.0,0.00021643,2]
[363042844,1748559051334,-187.3549395,0.00021643,2]
[363042846,1748559051344,-1019.32,0.00021643,2]
[363042848,1748559051355,-3424.75,0.00021643,2]
[363042850,1748559051365,-1169.52,0.00021643,2]
[363042852,1748559051375,-430.0,0.00021643,2]
[363042854,1748559051384,-2693.38,0.00021643,2]
[363042856,1748559051394,-2725.7,0.00021643,2]
[363042858,1748559051404,-430.35,0.00021643,2]
[363042860,1748559051413,-2116.94363657,0.00021652,2]
[363042862,1748559051423,-500.0,0.00021673,2]
[363042864,1748559051432,-500.0,0.00021673,2]
[363042866,1748559051442,-500.0,0.00021673,2]
[363042868,1748559051451,-410.10373323,0.00021673,2]
[363042870,1748559051461,-500.0,0.00021673,2]
[363042872,1748559051470,-500.0,0.00021673,2]
[363042874,1748559051480,-500.0,0.00021673,2]
[363042876,1748559051490,-500.0,0.00021673,2]
[363042878,1748559051500,-526.80558913,0.00021673,2]
[363042880,1748559051510,-514.61308224,0.00021673,2]
[363042882,1748559051519,-500.0,0.00021673,2]
[363042884,1748559051529,-500.0,0.00021673,2]
[363042886,1748559051538,-500.0,0.00021673,2]
[363042888,1748559051548,-500.0,0.00021673,2]
[363042890,1748559051558,-500.43144808,0.00021673,2]
[363042892,1748559051568,-500.0,0.00021673,2]
[363042894,1748559051578,-500.0,0.00021673,2]
[363042896,1748559051587,-500.0,0.00021673,2]
[363042898,1748559051597,-211.38915371,0.00021673,2]
[363042900,1748559051607,-500.4188959,0.00021673,2]
[363042902,1748559051616,-500.0,0.00021673,2]
[363042904,1748559051626,-500.0,0.00021673,2]
[363042906,1748559051635,-643.09418952,0.00021673,2]
[363042908,1748559051645,-500.0,0.00021673,2]
[363042910,1748559051655,-556.71349767,0.00021673,2]
[363042912,1748559051665,-500.0,0.00021673,2]
[363042914,1748559051674,-70898.06098452,0.000217,2]
[363042916,1748559051684,-151.0,0.000217,2]
[363042918,1748559051694,-151.0,0.000217,2]
[363042920,1748559051703,-275.206196,0.000217,2]
[363042922,1748559051713,-275.206196,0.000217,2]
[363042934,1748559051813,-354.412279,0.000217,2]
[363042937,1748559051840,-354.412279,0.000217,2]
[363042939,1748559051850,-151.0,0.000217,2]
[363042941,1748559051860,-151.0,0.000217,2]
[363042943,1748559051870,-157.36518,0.000217,2]
[363042945,1748559051879,-157.36518,0.000217,2]
[363042947,1748559051889,-151.0,0.000217,2]
[363042949,1748559051899,-151.0,0.000217,2]
[363042951,1748559051910,-151.0,0.000217,2]
[363042954,1748559051920,-1386.842952,0.000217,2]
[363042956,1748559051929,-1386.842952,0.000217,2]
[363042958,1748559051939,-151.0,0.000217,2]
[363042960,1748559051949,-151.0,0.000217,2]
[363042961,1748559051959,-151.0,0.000217,2]
[363042964,1748559051969,-151.0,0.000217,2]
[363042966,1748559051979,-151.0,0.000217,2]
[363042968,1748559051988,-151.0,0.000217,2]
[363042969,1748559051997,-165.089126,0.000217,2]
[363042971,1748559052011,-165.089126,0.000217,2]
[363042973,1748559052020,-215.0738,0.00021707,2]
[363042975,1748559052030,-3259.03433194,0.00021797,6]
[363042977,1748559052039,-961.0,0.00021872,2]
[363042979,1748559052049,-405.0,0.00021872,2]
[363042981,1748559052059,-708.0,0.00021872,2]
[363042984,1748559052068,-2228.0,0.00021872,2]
[363042985,1748559052078,-1000.0,0.0002189,2]
[363042987,1748559052088,-1000.0,0.0002189,2]
[363042989,1748559052097,-1000.0,0.0002189,2]
[363042991,1748559052107,-1000.0,0.0002189,2]
[363042993,1748559052115,-1000.0,0.0002189,2]
[363042995,1748559052124,-151.0,0.00021917,2]
[363042997,1748559052133,-151.0,0.00021917,2]
[363042999,1748559052142,-151.0,0.00021917,2]
[363043001,1748559052151,-2745.324701,0.00021917,2]
[363043003,1748559052160,-201.90870288,0.00021917,2]
[363043005,1748559052170,-2745.324701,0.00021917,2]
[363043007,1748559052179,-533.998849,0.00021917,2]
[363043009,1748559052188,-533.998849,0.00021917,2]
[363043011,1748559052198,-222.587324,0.00021917,2]
[363043013,1748559052207,-222.587324,0.00021917,2]
[363043015,1748559052216,-151.0,0.00021917,2]
[363043017,1748559052226,-155.372527,0.00021917,2]
[363043019,1748559052235,-151.0,0.00021917,2]
[363043021,1748559052244,-151.0,0.00021917,2]
[363043023,1748559052254,-151.0,0.00021917,2]
[363043025,1748559052263,-151.0,0.00021917,2]
[363043027,1748559052273,-1131.49,0.00021917,2]
[363043029,1748559052282,-681.15,0.00021917,2]
[363043031,1748559052291,-281.478941,0.00021917,2]
[363043032,1748559052299,-430.0,0.00021917,2]
[363043033,1748559052308,-151.0,0.00021917,2]
[363043034,1748559052317,-853.32,0.00021917,2]
[363043035,1748559052327,-151.0,0.00021917,2]
[363043036,1748559052336,-500.0,0.00021917,2]
[363043037,1748559052345,-500.0,0.00021917,2]
[363043038,1748559052354,-500.0,0.00021917,2]
[363043039,1748559052363,-500.0,0.00021917,2]
[363043040,1748559052372,-500.0,0.00021917,2]
[363043041,1748559052381,-500.0,0.00021917,2]
[363043042,1748559052391,-500.0,0.00021917,2]
[363043043,1748559052400,-500.0,0.00021917,2]
[363043044,1748559052410,-500.0,0.00021917,2]
[363043046,1748559052420,-500.0,0.00021917,2]
[363043047,1748559052429,-500.0,0.00021917,2]
[363043049,1748559052439,-430.0,0.00021917,2]
[363043051,1748559052448,-458.44,0.00021917,2]
[363043053,1748559052457,-430.0,0.00021917,2]
[363043055,1748559052466,-157.36518,0.00021917,2]
[363043057,1748559052476,-157.36518,0.00021917,2]
[363043059,1748559052486,-151.0,0.00021917,2]
[363043061,1748559052495,-151.0,0.00021917,2]
[363043063,1748559052504,-224.068466,0.00021917,2]
[363043065,1748559052513,-224.068466,0.00021917,2]
[363043067,1748559052522,-1484.630984,0.00021917,2]
[363043069,1748559052531,-1484.630984,0.00021917,2]
[363043071,1748559052542,-760.73,0.00021917,2]
[363043073,1748559052552,-430.0,0.00021917,2]
[363043075,1748559052561,-1386.842952,0.00021917,2]
[363043077,1748559052570,-430.0,0.00021917,2]
[363043079,1748559052579,-1386.842952,0.00021917,2]
[363043081,1748559052589,-467.47720288,0.00021917,2]
[363043083,1748559052598,-151.0,0.00021917,2]
[363043085,1748559052607,-430.0,0.00021917,2]
[363043087,1748559052617,-773.76,0.00021917,2]
[363043089,1748559052626,-4753.22,0.00021917,2]
[363043091,1748559052635,-662.19,0.00021917,2]
[363043093,1748559052644,-3674.83,0.00021917,2]
[363043095,1748559052655,-430.0,0.00021917,2]
[363043097,1748559052664,-269.645922,0.00021917,2]
[363043099,1748559052674,-430.0,0.00021917,2]
[363043101,1748559052683,-430.0,0.00021917,2]
[363043103,1748559052693,-269.645922,0.00021917,2]
[363043105,1748559052702,-589.21,0.00021917,2]
[363043107,1748559052712,-2053.24,0.00021917,2]
[363043109,1748559052721,-430.0,0.00021917,2]
[363043111,1748559052731,-696.31,0.00021917,2]
[363043113,1748559052741,-720.56,0.00021917,2]
[363043115,1748559052750,-2613.16,0.00021917,2]
[363043117,1748559052759,-430.0,0.00021917,2]
[363043119,1748559052768,-430.0,0.00021917,2]
[363043121,1748559052777,-4412.79,0.00021917,2]
[363043123,1748559052787,-968.5,0.00021917,2]
[363043125,1748559052796,-430.0,0.00021917,2]
[363043127,1748559052804,-517.0,0.00021917,2]
[363043129,1748559052814,-644.49,0.00021917,2]
[363043131,1748559052823,-408.07700264,0.00021917,2]
[363043133,1748559052832,-430.0,0.00021917,2]
[363043135,1748559052841,-953.49,0.00021917,2]
[363043136,1748559052851,-2879.71,0.00021917,2]
[363043138,1748559052860,-458.78,0.00021917,2]
[363043140,1748559052870,-697.57,0.00021917,2]
[363043142,1748559052879,-430.0,0.00021917,2]
[363043144,1748559052888,-3822.31,0.00021917,2]
[363043146,1748559052897,-430.0,0.00021917,2]
[363043148,1748559052906,-848.19,0.00021917,2]
[363043150,1748559052915,-1041.37,0.00021917,2]
[363043152,1748559052925,-155.0,0.00021917,2]
[363043154,1748559052934,-8172.02,0.00021917,2]
[363043156,1748559052943,-1022.41,0.00021917,2]
[363043158,1748559052952,-1425.87,0.00021917,2]
[363043160,1748559052962,-5104.13,0.00021917,2]
[363043162,1748559052971,-1326.38,0.00021917,2]
[363043164,1748559052980,-873.84,0.00021917,2]
[363043166,1748559052989,-7369.0,0.00021917,2]
[363043168,1748559052998,-467.28,0.00021917,2]
[363043170,1748559053010,-430.0,0.00021917,2]
[363043172,1748559053020,-2070.38,0.00021917,2]
[363043174,1748559053029,-430.0,0.00021917,2]
[363043176,1748559053038,-2055.19,0.00021917,2]
[363043178,1748559053048,-1511.1,0.00021917,2]
[363043179,1748559053057,-430.0,0.00021917,2]
[363043181,1748559053066,-1350.97,0.00021917,2]
[363043183,1748559053076,-1584.57,0.00021917,2]
[363043185,1748559053085,-750.88,0.00021917,2]
[363043187,1748559053095,-1425.46,0.00021917,2]
[363043190,1748559053105,-430.0,0.00021917,2]
[363043191,1748559053115,-722.11,0.00021917,2]
[363043193,1748559053124,-430.0,0.00021917,2]
[363043195,1748559053133,-760.02,0.00021917,2]
[363043197,1748559053142,-578.85,0.00021917,2]
[363043199,1748559053152,-615.21,0.00021917,2]
[363043201,1748559053161,-913.66,0.00021917,2]
[363043203,1748559053171,-741.95,0.00021917,2]
[363043205,1748559053180,-430.0,0.00021917,2]
[363043207,1748559053190,-2799.2,0.00021917,2]
[363043209,1748559053199,-517.21,0.00021917,2]
[363043211,1748559053209,-430.0,0.00021917,2]
[363043213,1748559053218,-1019.32,0.00021917,2]
[363043216,1748559053227,-3424.75,0.00021917,2]
[363043217,1748559053237,-1169.52,0.00021917,2]
[363043219,1748559053246,-430.0,0.00021917,2]
[363043221,1748559053255,-2693.38,0.00021917,2]
[363043223,1748559053264,-2725.7,0.00021917,2]
[363043225,1748559053274,-430.35,0.00021917,2]
[363043227,1748559053283,-265.09988678,0.00021918,2]
[363043229,1748559053293,-728.352832,0.00021945,2]
[363043232,1748559053303,-3259.03433194,0.00021969,6]
[363043233,1748559053312,-842.02,0.00022,7]
[363043235,1748559053321,-1827.31,0.00022,7]
[363043237,1748559053330,-151.0,0.00022,7]
[363043239,1748559053339,-151.0,0.00022,7]
[363043241,1748559053349,-5187.01,0.00022,2]
[363043243,1748559053358,-32892.46,0.00022,2]
[363043245,1748559053367,-151.0,0.00022,7]
[363043247,1748559053377,-151.0,0.00022,7]
[363043249,1748559053387,-224.937947,0.00022,7]
[363043251,1748559053396,-224.937947,0.00022,7]
[363043253,1748559053406,-151.0,0.00022,7]
[363043255,1748559053416,-151.0,0.00022,7]
[363043257,1748559053425,-151.0,0.00022,7]
[363043259,1748559053434,-488.028774,0.00022,7]
[363043261,1748559053443,-488.028774,0.00022,7]
[363043263,1748559053452,-211.744238,0.00022,7]
[363043265,1748559053461,-211.744238,0.00022,7]
[363043267,1748559053470,-666.262388,0.00022,7]
[363043269,1748559053480,-151.0,0.00022,7]
[363043271,1748559053489,-666.262388,0.00022,7]
[363043273,1748559053499,-3528.632142,0.00022,7]
[363043275,1748559053507,-3528.632142,0.00022,7]
[363043277,1748559053517,-325.723899,0.00022,7]
[363043279,1748559053526,-325.723899,0.00022,7]
[363043281,1748559053535,-224.068466,0.00022,7]
[363043283,1748559053544,-224.068466,0.00022,7]
[363043285,1748559053553,-637.0,0.00022,2]
[363043287,1748559053562,-212.70147903,0.00022,7]
[363043289,1748559053572,-314.78059479,0.00022,7]
[363043291,1748559053581,-12660.97845086,0.00022,7]
[363043293,1748559053590,-194.0,0.00022,2]
[363043295,1748559053599,-2116.94363657,0.00022034,2]
[363043297,1748559053609,-3259.03433194,0.00022141,6]
[363043299,1748559053618,-151.0,0.00022191,7]
[363043301,1748559053627,-151.0,0.00022191,2]
[363043303,1748559053636,-151.0,0.00022191,2]
[363043305,1748559053645,-151.0,0.00022191,7]
[363043307,1748559053655,-151.0,0.00022191,7]
[363043309,1748559053664,-151.0,0.00022191,7]
[363043311,1748559053673,-151.0,0.00022191,7]
[363043313,1748559053682,-151.0,0.00022191,7]
[363043315,1748559053691,-405.922618,0.00022191,7]
[363043317,1748559053700,-405.922618,0.00022191,7]
[363043319,1748559053709,-559.728489,0.00022191,7]
[363043321,1748559053718,-559.728489,0.00022191,7]
[363043323,1748559053728,-151.0,0.00022191,7]
[363043325,1748559053737,-159.540771,0.00022191,7]
[363043327,1748559053746,-159.540771,0.00022191,7]
[363043329,1748559053755,-151.0,0.00022191,7]
[363043330,1748559053764,-151.0,0.00022191,7]
[363043333,1748559053774,-230.796027,0.00022191,7]
[363043334,1748559053783,-230.796027,0.00022191,7]
[363043336,1748559053792,-151.0,0.00022191,7]
[363043339,1748559053801,-151.0,0.00022191,7]
[363043340,1748559053810,-151.0,0.00022191,7]
[363043343,1748559053820,-156.478641,0.00022191,7]
[363043345,1748559053829,-156.478641,0.00022191,7]
[363043346,1748559053838,-644.659365,0.00022191,7]
[363043348,1748559053847,-644.659365,0.00022191,7]
[363043350,1748559053856,-718.429646,0.00022191,7]
[363043352,1748559053866,-718.429646,0.00022191,7]
[363043354,1748559053875,-155.496671,0.00022191,7]
[363043356,1748559053884,-151.0,0.00022191,7]
[363043358,1748559053893,-151.0,0.00022191,7]
[363043360,1748559053902,-275.206196,0.00022191,7]
[363043362,1748559053911,-275.206196,0.00022191,7]
[363043364,1748559053923,-151.0,0.00022191,7]
[363043366,1748559053932,-211.744238,0.00022191,7]
[363043368,1748559053941,-211.744238,0.00022191,7]
[363043370,1748559053950,-57.60880496,0.00022191,7]
[363043423,1748559054450,-271.4,0.00019177,2]
[363043425,1748559054461,-228.6,0.00019177,2]
[363043427,1748559054470,-452.41,0.00019178,2]
[363043429,1748559054479,-211.46082374,0.00019992,2]
[363043431,1748559054491,-1.24065529,0.00019992,2]
[363043433,1748559054500,-752.37,0.0002,2]
[363043435,1748559054509,-752.37,0.00020273,2]
[363043436,1748559054519,-13.36897274,0.00020547,2]
[363043437,1748559054530,-739.00102726,0.00020547,2]
[363043438,1748559054539,-752.37,0.00020821,2]
[363043439,1748559054548,-151.0,0.00020821,2]
[363043440,1748559054557,-752.37,0.00021095,2]
[363043441,1748559054566,-752.37,0.00021369,2]
[363043442,1748559054576,-151.0,0.00021369,2]
[363043443,1748559054585,-752.37,0.00021643,2]
[363043444,1748559054594,-151.0,0.000217,2]
[363043445,1748559054604,-752.37,0.00021917,2]
[363043446,1748559054613,-93.39119504,0.00022191,7]
[363043447,1748559054622,-151.0,0.00022191,7]
[363043448,1748559054632,-666.262388,0.00022191,7]
[363043449,1748559054641,-666.262388,0.00022191,7]
[363043450,1748559054650,-354.412279,0.00022191,7]
[363043451,1748559054660,-354.412279,0.00022191,7]
[363043452,1748559054669,-3528.632142,0.00022191,7]
[363043453,1748559054679,-3528.632142,0.00022191,7]
[363043454,1748559054689,-1131.49,0.00022191,2]
[363043455,1748559054698,-681.15,0.00022191,2]
[363043456,1748559054708,-430.0,0.00022191,2]
[363043457,1748559054717,-151.0,0.00022191,7]
[363043458,1748559054726,-853.32,0.00022191,2]
[363043459,1748559054735,-151.0,0.00022191,7]
[363043460,1748559054745,-430.0,0.00022191,2]
[363043461,1748559054754,-458.44,0.00022191,2]
[363043462,1748559054764,-325.723899,0.00022191,7]
[363043463,1748559054773,-430.0,0.00022191,2]
[363043464,1748559054783,-325.723899,0.00022191,7]
[363043466,1748559054793,-157.36518,0.00022191,7]
[363043467,1748559054803,-157.36518,0.00022191,7]
[363043468,1748559054814,-151.0,0.00022191,7]
[363043470,1748559054823,-151.0,0.00022191,7]
[363043472,1748559054832,-1484.630984,0.00022191,7]
[363043474,1748559054841,-1484.630984,0.00022191,7]
[363043475,1748559054852,-760.73,0.00022191,2]
[363043478,1748559054863,-430.0,0.00022191,2]
[363043479,1748559054872,-212.70147903,0.00022191,7]
[363043481,1748559054881,-1386.842952,0.00022191,2]
[363043483,1748559054890,-430.0,0.00022191,2]
[363043485,1748559054899,-1386.842952,0.00022191,2]
[363043487,1748559054909,-151.0,0.00022191,7]
[363043489,1748559054918,-430.0,0.00022191,2]
[363043491,1748559054928,-773.76,0.00022191,2]
[363043493,1748559054937,-4753.22,0.00022191,2]
[363043495,1748559054946,-662.19,0.00022191,2]
[363043497,1748559054955,-3674.83,0.00022191,2]
[363043499,1748559054964,-430.0,0.00022191,2]
[363043501,1748559054974,-269.645922,0.00022191,7]
[363043503,1748559054983,-430.0,0.00022191,2]
[363043505,1748559054992,-430.0,0.00022191,2]
[363043507,1748559055002,-269.645922,0.00022191,7]
[363043509,1748559055014,-2053.24,0.00022191,2]
[363043511,1748559055023,-151.0,0.00022191,7]
[363043513,1748559055032,-430.0,0.00022191,2]
[363043515,1748559055041,-151.0,0.00022191,7]
[363043517,1748559055052,-696.31,0.00022191,2]
[363043519,1748559055061,-720.56,0.00022191,2]
[363043521,1748559055071,-2613.16,0.00022191,2]
[363043523,1748559055081,-430.0,0.00022191,2]
[363043525,1748559055091,-4412.79,0.00022191,2]
[363043527,1748559055100,-968.5,0.00022191,2]
[363043529,1748559055110,-430.0,0.00022191,2]
[363043531,1748559055119,-517.0,0.00022191,2]
[363043533,1748559055129,-644.49,0.00022191,2]
[363043535,1748559055139,-430.0,0.00022191,2]
[363043537,1748559055148,-953.49,0.00022191,2]
[363043539,1748559055158,-2879.71,0.00022191,2]
[363043541,1748559055168,-458.78,0.00022191,2]
[363043543,1748559055177,-697.57,0.00022191,2]
[363043545,1748559055188,-430.0,0.00022191,2]
[363043547,1748559055197,-151.0,0.00022191,7]
[363043549,1748559055207,-3822.31,0.00022191,2]
[363043551,1748559055216,-430.0,0.00022191,2]
[363043553,1748559055225,-848.19,0.00022191,2]
[363043555,1748559055234,-1041.37,0.00022191,2]
[363043557,1748559055243,-8172.02,0.00022191,2]
[363043559,1748559055253,-1022.41,0.00022191,2]
[363043561,1748559055262,-1425.87,0.00022191,2]
[363043562,1748559055272,-5104.13,0.00022191,2]
[363043564,1748559055282,-314.78059479,0.00022191,7]
[363043566,1748559055292,-1326.38,0.00022191,2]
[363043569,1748559055302,-873.84,0.00022191,2]
[363043571,1748559055312,-7369.0,0.00022191,2]